bitfinex/quotes_SOLUSD_20250922
["timestamp","ask_amount","ask_price","bid_price","bid_amount"]
[1758510666173,1.72633305,232.32,232.31,0.1]
[1758510666376,1.72633305,232.32,232.31,0.77]
[1758510666796,1.72633305,232.32,232.31,0.1]
[1758510670392,34.0,232.33,232.31,0.8]
[1758510670794,35.7259606,232.33,232.31,0.8]
[1758510671883,1.7259606,232.33,232.32,0.7]
[1758510672096,132.2,232.34,232.32,0.7]
[1758510672299,136.60453633,232.34,232.33,0.7]
[1758510672803,132.2,232.34,232.33,0.7]
[1758510673914,132.2,232.34,232.33,5.00422244]
[1758510674488,12.9430291,232.37,232.33,15.76477854]
[1758510674683,132.2,232.42,232.34,0.7]
[1758510674897,12.9413541,232.4,232.34,0.7]
[1758510675694,166.2,232.42,232.34,0.7]
[1758510675900,170.50258155,232.42,232.35,4.30385194]
[1758510676097,12.94023767,232.41,232.36,0.7]
[1758510676311,166.2,232.42,232.36,0.7]
[1758510676609,176.9605561,232.42,232.37,0.7]
[1758510676818,176.9605561,232.42,232.38,0.7]
[1758510678019,176.9605561,232.42,232.35,4.30385194]
[1758510678223,181.26311605,232.42,232.36,0.7]
[1758510678590,181.24311605,232.42,232.36,0.7]
[1758510678806,176.9405561,232.42,232.36,0.7]
[1758510679624,166.18,232.42,232.36,0.7]
[1758510679957,10.7605561,232.41,232.36,0.7]
[1758510680100,10.7605561,232.41,232.33,10.7605561]
[1758510680298,10.7605561,232.41,232.37,5.00331228]
[1758510680694,132.2,232.42,232.38,0.7]
[1758510681824,132.2,232.42,232.38,5.0031803]
[1758510682316,132.2,232.42,232.39,0.7]
[1758510682523,132.2,232.42,232.4,0.7]
[1758510683013,132.2,232.42,232.38,4.3031803]
[1758510683611,132.2,232.42,232.38,5.0031803]
[1758510685616,132.89,232.42,232.32,15.06542699]
[1758510685820,132.2,232.42,232.32,15.76542699]
[1758510686020,132.2,232.42,232.33,0.7]
[1758510686520,132.2,232.42,232.34,15.06413014]
[1758510686708,132.2,232.42,232.35,0.7]
[1758510687908,132.2,232.42,232.36,4.30366672]
[1758510688131,132.2,232.42,232.36,4.97366672]
[1758510689633,132.86,232.42,232.36,0.67]
[1758510689959,0.66,232.41,232.32,4.30440771]
[1758510690108,34.62,232.4,232.32,4.30440771]
[1758510690312,0.66,232.39,232.32,4.30440771]
[1758510690613,0.66,232.38,232.31,0.77]
[1758510690832,34.62,232.38,232.31,0.1]
[1758510691423,4.30485127,232.37,232.31,0.1]
[1758510691617,4.30366672,232.36,232.31,0.1]
[1758510691822,4.96366672,232.36,232.31,0.1]
[1758510692226,5.16475193,232.36,232.31,0.1]
[1758510692428,0.66,232.35,232.31,4.4045743]
[1758510692642,4.50475193,232.36,232.31,5.0745743]
[1758510692846,0.66,232.35,232.31,4.4045743]
[1758510693554,0.66,232.35,232.31,0.1]
[1758510694128,0.66,232.34,232.31,0.1]
[1758510694450,0.66,232.33,232.31,0.1]
[1758510695023,33.96,232.32,232.31,0.1]
[1758510695235,34.62,232.32,232.31,0.1]
[1758510697258,33.96,232.32,232.31,0.1]
[1758510697926,34.62,232.32,232.31,0.1]
[1758510701384,33.96,232.32,232.31,0.1]
[1758510702888,132.86,232.34,232.31,0.1]
[1758510703080,33.96,232.33,232.31,0.1]
[1758510703377,34.62,232.33,232.31,0.1]
[1758510703879,0.66,232.32,232.31,0.1]
[1758510704352,4.96440771,232.32,232.31,0.1]
[1758510705784,38.92440771,232.32,232.31,0.1]
[1758510706554,33.96,232.32,232.31,0.1]
[1758510707757,33.96,232.33,232.31,0.1]
[1758510707977,33.96,232.33,232.31,0.77]
[1758510708193,166.16,232.34,232.31,0.77]
[1758510708677,166.16,232.34,232.31,0.1]
[1758510709082,166.16,232.34,232.31,0.77]
[1758510709462,166.16,232.34,232.31,0.1]
[1758510709785,132.2,232.34,232.32,0.67]
[1758510710026,0.66,232.41,232.32,0.67]
[1758510710289,33.96,232.4,232.32,0.67]
[1758510711793,33.96,232.4,232.33,15.06477854]
[1758510711961,33.96,232.4,232.34,0.67]
[1758510713785,0.66,232.39,232.33,4.30422244]
[1758510713993,0.66,232.39,232.32,4.30440771]
[1758510714375,38.26298111,232.4,232.32,4.97440771]
[1758510714577,0.66,232.39,232.32,4.97440771]
[1758510714777,0.66,232.38,232.31,0.1]
[1758510715180,0.66,232.38,232.31,4.4045484]
[1758510715386,34.6,232.37,232.31,4.4045484]
[1758510717184,38.24359833,232.37,232.31,4.4045484]
[1758510717379,0.67,232.36,232.31,4.4045484]
[1758510717692,0.67,232.35,232.31,0.1]
[1758510717990,0.67,232.34,232.31,0.1]
[1758510718395,38.91359833,232.37,232.31,0.1]
[1758510718574,38.91359833,232.37,232.32,0.66]
[1758510718888,38.91359833,232.37,232.31,0.1]
[1758510718889,0.67,232.36,232.31,0.1]
[1758510719091,0.67,232.36,232.31,5.06458597]
[1758510719467,31.2,232.38,232.32,0.66]
[1758510720885,132.2,232.39,232.32,0.66]
[1758510721269,132.2,232.39,232.33,4.30422244]
[1758510721690,132.2,232.39,232.34,0.66]
[1758510721898,132.2,232.39,232.35,0.66]
[1758510722081,132.2,232.39,232.33,4.30422244]
[1758510722283,132.2,232.44,232.34,0.66]
[1758510723388,132.2,232.44,232.35,15.0634818]
[1758510723596,132.2,232.44,232.36,0.66]
[1758510724098,132.87,232.44,232.36,0.66]
[1758510724581,166.79,232.44,232.36,0.66]
[1758510725291,166.79,232.44,232.35,15.0634818]
[1758510725484,0.67,232.43,232.35,15.7234818]
[1758510725682,166.12,232.44,232.36,0.66]
[1758510726586,132.2,232.44,232.36,0.66]
[1758510727394,132.2,232.44,232.37,15.0621853]
[1758510727586,132.2,232.44,232.38,0.66]
[1758510727919,0.67,232.48,232.38,0.66]
[1758510728205,34.59,232.48,232.38,0.66]
[1758510728495,132.2,232.5,232.38,0.66]
[1758510728706,12.93633169,232.54,232.4,31.2]
[1758510728894,2.88747153,232.53,232.41,0.66]
[1758510729096,12.93633169,232.54,232.41,0.66]
[1758510729304,0.67,232.57,232.41,0.66]
[1758510729491,0.67,232.57,232.42,15.058945]
[1758510729805,0.67,232.57,232.45,31.2]
[1758510730023,0.65,232.59,232.46,34.61]
[1758510730310,0.65,232.58,232.47,0.69]
[1758510731607,0.65,232.58,232.48,15.05505849]
[1758510731902,0.65,232.58,232.49,0.69]
[1758510733820,0.65,232.58,232.5,4.30107526]
[1758510734031,0.65,232.58,232.51,0.69]
[1758510736295,132.2,232.59,232.52,15.05246859]
[1758510736509,132.2,232.59,232.53,0.69]
[1758510736829,0.1,232.6,232.53,0.69]
[1758510738707,0.1,232.6,232.54,15.05117398]
[1758510738895,0.1,232.6,232.55,0.69]
[1758510740094,0.1,232.6,232.56,33.88]
[1758510740298,0.1,232.6,232.57,0.69]
[1758510740491,0.1,232.6,232.58,0.69]
[1758510740696,0.1,232.6,232.58,4.98949067]
[1758510743018,0.1,232.6,232.59,0.69]
[1758510748315,0.1,232.6,232.59,34.55]
[1758510748508,0.1,232.6,232.59,38.84941098]
[1758510751221,0.1,232.6,232.59,52.02395411]
[1758510751630,0.1,232.68,232.59,62.77248156]
[1758510751804,0.1,232.68,232.6,0.71]
[1758510752627,0.1,232.68,232.61,15.04664459]
[1758510752834,0.1,232.68,232.62,0.71]
[1758510753002,0.1,232.68,232.63,33.84]
[1758510753329,0.1,232.68,232.64,0.71]
[1758510754404,0.1,232.68,232.65,4.29830217]
[1758510754603,0.1,232.68,232.66,0.71]
[1758510754803,0.1,232.68,232.67,33.84]
[1758510755822,0.1,232.68,232.67,34.55]
[1758510756199,0.1,232.68,232.67,0.71]
[1758510756404,0.1,232.68,232.67,38.84793269]
[1758510759129,0.77,232.68,232.62,31.91]
[1758510759330,0.67,232.67,232.63,33.82]
[1758510759622,0.67,232.66,232.6,15.04729147]
[1758510759841,0.67,232.65,232.61,33.82]
[1758510760132,0.67,232.64,232.62,33.82]
[1758510760310,0.67,232.63,232.62,33.82]
[1758510760921,0.67,232.63,232.59,4.29938429]
[1758510761234,0.67,232.63,232.6,38.11921745]
[1758510761602,0.1,232.68,232.6,38.11921745]
[1758510761603,0.67,232.65,232.6,38.11921745]
[1758510764030,0.67,232.65,232.6,38.82921745]
[1758510764627,0.67,232.64,232.6,38.11921745]
[1758510764933,0.67,232.64,232.6,4.29921745]
[1758510765132,0.67,232.64,232.61,33.82]
[1758510765636,4.96814757,232.66,232.61,33.82]
[1758510766008,0.1,232.68,232.62,0.71]
[1758510766220,13.59629856,232.67,232.61,38.11897212]
[1758510766421,0.67,232.66,232.61,33.82]
[1758510766649,0.67,232.65,232.61,33.82]
[1758510766846,12.92629856,232.67,232.62,0.71]
[1758510767148,0.1,232.68,232.63,0.71]
[1758510767345,0.1,232.68,232.61,38.11903804]
[1758510767346,0.1,232.68,232.64,34.53]
[1758510767949,0.1,232.68,232.65,0.71]
[1758510768151,0.1,232.68,232.66,0.71]
[1758510768448,0.1,232.68,232.67,5.00793269]
[1758510769646,0.77,232.68,232.62,0.71]
[1758510769815,0.1,232.68,232.63,33.8]
[1758510770014,0.1,232.68,232.64,0.71]
[1758510770240,0.1,232.68,232.65,5.00811763]
[1758510770953,0.1,232.68,232.66,33.8]
[1758510774265,0.1,232.68,232.64,5.00846549]
[1758510774431,0.1,232.68,232.65,34.51]
[1758510774629,0.1,232.68,232.65,0.71]
[1758510774937,0.1,232.68,232.66,33.8]
[1758510777825,0.69,232.67,232.61,12.79991381]
[1758510778038,0.69,232.66,232.61,33.8]
[1758510778240,0.69,232.65,232.61,33.8]
[1758510778431,0.69,232.64,232.61,33.8]
[1758510779246,13.61629856,232.66,232.61,33.8]
[1758510779448,0.69,232.65,232.61,33.8]
[1758510780436,0.69,232.65,232.61,38.09897246]
[1758510780941,12.92629856,232.66,232.61,38.76897246]
[1758510781325,12.92629856,232.66,232.61,38.09897246]
[1758510781528,12.92629856,232.66,232.62,0.67]
[1758510782549,0.69,232.65,232.61,33.8]
[1758510784229,0.69,232.65,232.61,34.47]
[1758510784625,4.98832376,232.65,232.61,34.47]
[1758510784852,4.98832376,232.65,232.61,33.78]
[1758510785076,17.91462232,232.65,232.61,33.78]
[1758510785235,17.91462232,232.65,232.61,34.45]
[1758510786544,13.61629856,232.65,232.61,34.45]
[1758510787761,17.91468988,232.65,232.61,34.45]
[1758510788153,17.22468988,232.65,232.61,34.45]
[1758510788544,17.22468988,232.65,232.58,4.29941612]
[1758510788739,0.69,232.64,232.59,33.78]
[1758510788940,0.69,232.63,232.59,33.78]
[1758510789239,17.91468988,232.65,232.59,33.78]
[1758510789554,17.91468988,232.65,232.59,34.45]
[1758510790139,0.7,232.64,232.59,33.78]
[1758510790458,0.7,232.63,232.59,33.78]
[1758510790832,31.2,232.67,232.6,0.67]
[1758510791241,12.92629855,232.66,232.6,0.67]
[1758510791535,35.4979354,232.67,232.6,4.96905673]
[1758510791740,48.42312013,232.67,232.61,0.67]
[1758510791940,48.42312013,232.67,232.62,33.78]
[1758510792159,48.42312013,232.67,232.63,0.67]
[1758510793158,49.12312013,232.67,232.62,33.78]
[1758510793358,49.12312013,232.67,232.62,34.45]
[1758510793948,0.7,232.66,232.62,33.76]
[1758510794146,48.42312013,232.67,232.62,34.43]
[1758510794557,49.12312013,232.67,232.62,34.43]
[1758510794762,49.12312013,232.67,232.62,33.76]
[1758510795070,31.2,232.67,232.63,0.67]
[1758510795235,31.2,232.67,232.64,0.67]
[1758510795766,12.92629855,232.66,232.65,0.67]
[1758510795975,0.1,232.68,232.65,0.67]
[1758510796141,13.02518473,232.68,232.66,0.67]
[1758510796842,13.02518473,232.68,232.62,38.05867905]
[1758510797071,13.02518473,232.68,232.63,0.67]
[1758510797276,18.02300638,232.68,232.63,0.67]
[1758510797465,17.32300638,232.68,232.62,33.76]
[1758510797764,0.1,232.68,232.64,0.67]
[1758510797949,0.1,232.68,232.65,4.29830217]
[1758510798151,0.1,232.68,232.66,34.43]
[1758510798960,0.1,232.68,232.67,0.67]
[1758510801153,0.8,232.68,232.64,33.76]
[1758510801468,0.1,232.68,232.67,0.67]
[1758510801967,0.1,232.68,232.65,0.67]
[1758510802148,0.1,232.68,232.66,0.67]
[1758510802355,0.1,232.68,232.67,0.67]
[1758510802863,0.1,232.68,232.65,0.67]
[1758510803852,0.1,232.68,232.64,38.05841258]
[1758510804052,0.1,232.68,232.65,0.67]
[1758510806749,31.9,232.67,232.59,0.65]
[1758510806976,31.2,232.65,232.57,0.65]
[1758510807183,31.2,232.64,232.57,4.94976008]
[1758510807346,4.29867171,232.63,232.57,0.65]
[1758510807551,4.99867171,232.63,232.56,34.39]
[1758510807852,17.92608429,232.63,232.56,34.39]
[1758510808166,4.99867171,232.63,232.56,38.6899628]
[1758510808557,12.92796966,232.62,232.56,38.6899628]
[1758510809073,12.92796966,232.62,232.56,0.65]
[1758510809264,0.7,232.61,232.55,33.74]
[1758510809578,12.92796966,232.62,232.56,0.65]
[1758510809776,31.3,232.68,232.56,0.65]
[1758510810088,12.92574161,232.66,232.56,0.65]
[1758510810244,31.3,232.68,232.56,0.65]
[1758510810668,13.02462788,232.68,232.58,31.2]
[1758510810890,0.1,232.68,232.59,34.39]
[1758510811062,0.1,232.68,232.6,0.65]
[1758510811669,0.1,232.68,232.61,15.04664459]
[1758510811896,0.1,232.68,232.62,0.65]
[1758510812098,0.1,232.68,232.63,33.74]
[1758510812304,0.1,232.68,232.64,0.65]
[1758510813770,0.1,232.68,232.65,15.04405759]
[1758510813993,0.1,232.68,232.66,0.65]
[1758510814183,0.1,232.68,232.67,0.65]
[1758510816295,0.1,232.68,232.67,4.94793269]
[1758510816505,0.1,232.68,232.67,38.68793269]
[1758510819487,0.1,232.68,232.67,38.66793269]
[1758510820084,0.1,232.68,232.67,4.94793269]
[1758510820386,0.1,232.68,232.67,38.66793269]
[1758510821895,0.1,232.68,232.67,51.40681939]
[1758510823186,0.1,232.68,232.67,17.68681939]
[1758510823391,0.1,232.68,232.67,51.40681939]
[1758510829901,0.1,232.68,232.67,17.68681939]
[1758510830126,0.1,232.68,232.67,17.03681939]
[1758510830606,0.1,232.68,232.67,50.75681939]
[1758510831107,0.1,232.68,232.67,51.40681939]
[1758510833887,0.1,232.68,232.67,17.03681939]
[1758510834093,0.8,232.68,232.67,50.73681939]
[1758510834583,0.1,232.68,232.67,50.73681939]
[1758510834991,0.8,232.68,232.67,12.7388867]
[1758510835211,0.8,232.68,232.67,33.7]
[1758510836311,0.8,232.68,232.62,4.2988565]
[1758510836512,0.7,232.67,232.63,33.7]
[1758510836695,0.7,232.66,232.63,33.7]
[1758510837290,0.1,232.68,232.63,33.7]
[1758510837596,0.71,232.66,232.63,37.99861583]
[1758510837800,0.81,232.68,232.63,37.99861583]
[1758510838102,0.71,232.67,232.63,37.99861583]
[1758510838303,0.1,232.68,232.63,4.29861583]
[1758510838611,0.71,232.66,232.64,33.7]
[1758510838811,0.71,232.66,232.65,33.7]
[1758510839317,0.1,232.68,232.65,33.7]
[1758510839625,0.71,232.67,232.65,33.7]
[1758510839798,0.71,232.66,232.65,33.7]
[1758510840002,0.1,232.68,232.65,33.7]
[1758510840220,0.71,232.67,232.65,33.7]
[1758510840620,0.71,232.66,232.65,33.7]
[1758510841125,0.71,232.66,232.56,31.2]
[1758510841126,4.39778795,232.68,232.56,31.2]
[1758510841417,0.71,232.66,232.57,33.7]
[1758510841619,0.71,232.65,232.57,34.39]
[1758510841802,0.71,232.64,232.57,34.39]
[1758510841999,0.71,232.63,232.58,33.7]
[1758510842225,0.71,232.62,232.58,33.7]
[1758510842424,0.71,232.62,232.58,37.99954863]
[1758510842630,0.71,232.62,232.58,33.7]
[1758510844230,0.71,232.62,232.59,33.7]
[1758510847014,132.2,232.65,232.6,0.69]
[1758510847215,136.49831381,232.65,232.6,0.69]
[1758510847411,137.20831381,232.65,232.6,0.69]
[1758510848601,136.49831381,232.65,232.61,0.69]
[1758510848809,132.2,232.65,232.61,0.69]
[1758510849819,132.2,232.65,232.62,34.39]
[1758510850109,132.2,232.65,232.63,0.69]
[1758510850325,31.2,232.66,232.63,0.69]
[1758510850905,31.2,232.66,232.63,4.98856326]
[1758510851109,0.69,232.65,232.62,33.7]
[1758510851299,0.69,232.64,232.62,33.7]
[1758510851505,0.69,232.64,232.53,0.66]
[1758510851506,31.2,232.63,232.53,0.66]
[1758510851732,0.69,232.62,232.53,16.66]
[1758510851908,31.2,232.59,232.53,16.66]
[1758510852224,31.89,232.58,232.53,16.66]
[1758510852439,31.89,232.58,232.46,6.54808511]
[1758510852440,0.69,232.57,232.48,0.66]
[1758510852601,0.69,232.57,232.49,33.68]
[1758510852804,0.69,232.56,232.49,33.68]
[1758510853015,0.69,232.57,232.5,0.66]
[1758510854128,4.98984754,232.57,232.5,0.66]
[1758510854535,4.98984754,232.57,232.49,33.68]
[1758510854712,0.69,232.56,232.49,33.68]
[1758510854917,0.69,232.56,232.49,37.98122625]
[1758510855633,0.69,232.56,232.49,38.64122625]
[1758510856009,0.69,232.55,232.49,34.34]
[1758510856206,0.69,232.54,232.47,4.96163031]
[1758510856430,0.69,232.54,232.48,33.7]
[1758510856627,0.69,232.53,232.48,33.7]
[1758510856808,0.69,232.52,232.48,33.7]
[1758510857014,0.69,232.51,232.44,0.66]
[1758510857227,0.69,232.51,232.44,34.34]
[1758510857632,44.13354315,232.54,232.44,34.34]
[1758510857821,0.69,232.5,232.44,34.34]
[1758510858709,4.30126026,232.49,232.44,34.34]
[1758510859014,4.99126026,232.49,232.44,34.34]
[1758510859428,4.30126026,232.49,232.44,33.68]
[1758510859619,0.69,232.48,232.44,33.68]
[1758510860717,4.30126026,232.49,232.44,34.34]
[1758510861320,4.99126026,232.49,232.44,34.34]
[1758510861516,31.89,232.48,232.42,0.66]
[1758510861930,44.82744744,232.48,232.4,33.68]
[1758510862126,0.69,232.47,232.4,33.68]
[1758510863233,4.30181536,232.46,232.4,33.68]
[1758510863747,31.2,232.43,232.37,0.86]
[1758510864042,31.2,232.43,232.37,34.54]
[1758510864211,31.2,232.42,232.37,34.54]
[1758510865238,4.30292598,232.4,232.37,0.2]
[1758510865633,4.99292598,232.4,232.37,0.2]
[1758510865813,31.2,232.38,232.37,0.2]
[1758510866540,31.89,232.38,232.37,0.2]
[1758510866743,31.89,232.38,232.31,0.1]
[1758510866744,31.2,232.37,232.31,0.1]
[1758510867130,31.89,232.36,232.31,0.1]
[1758510867520,4.99385194,232.35,232.31,0.1]
[1758510868343,31.2,232.32,232.31,0.1]
[1758510869444,35.50440771,232.32,232.31,0.1]
[1758510869643,4.30440771,232.32,232.31,0.1]
[1758510871742,0.69,232.31,232.3,0.2]
[1758510872631,138.23055612,232.32,232.3,0.2]
[1758510872844,133.92610957,232.32,232.3,0.2]
[1758510873049,35.50405571,232.34,232.3,0.91]
[1758510873852,40.00954136,232.34,232.3,0.2]
[1758510874151,40.69954136,232.34,232.3,0.2]
[1758510874352,31.2,232.32,232.3,0.91]
[1758510874853,31.2,232.33,232.3,0.91]
[1758510875166,31.2,232.32,232.3,0.91]
[1758510876050,31.2,232.33,232.3,0.2]
[1758510876351,31.2,232.33,232.3,0.91]
[1758510876665,31.2,232.33,232.3,0.2]
[1758510876957,31.2,232.33,232.3,0.91]
[1758510877634,31.2,232.34,232.31,0.71]
[1758510878049,31.2,232.34,232.31,5.01457654]
[1758510878230,31.2,232.34,232.32,0.71]
[1758510878556,31.2,232.34,232.33,0.71]
[1758510879742,163.4,232.37,232.33,0.71]
[1758510879947,132.2,232.36,232.33,0.71]
[1758510880852,132.2,232.36,232.33,5.01420875]
[1758510881154,132.2,232.36,232.34,0.71]
[1758510881749,132.2,232.36,232.33,4.30420875]
[1758510881953,132.2,232.36,232.33,5.01420875]
[1758510882259,132.2,232.36,232.34,0.71]
[1758510882637,132.2,232.36,232.31,4.30446935]
[1758510882961,31.2,232.33,232.3,4.50472871]
[1758510883259,31.2,232.33,232.31,0.71]
[1758510883834,31.2,232.33,232.3,4.50472871]
[1758510884049,31.2,232.33,232.31,0.71]
[1758510884252,132.2,232.36,232.32,0.71]
[1758510884455,31.2,232.33,232.32,0.71]
[1758510884657,31.2,232.33,232.3,4.50472871]
[1758510885169,31.2,232.33,232.3,5.21472871]
[1758510885355,31.2,232.33,232.31,0.71]
[1758510885554,31.2,232.33,232.3,4.50472871]
[1758510885555,31.2,232.33,232.32,0.71]
[1758510886145,31.2,232.33,232.3,0.91]
[1758510886342,31.2,232.33,232.31,0.71]
[1758510886764,31.2,232.33,232.32,5.01440771]
[1758510887582,132.2,232.36,232.32,5.01440771]
[1758510887745,132.2,232.36,232.32,15.77542699]
[1758510887941,31.2,232.37,232.33,0.71]
[1758510888346,31.2,232.38,232.33,0.71]
[1758510888782,132.2,232.41,232.34,15.06413014]
[1758510888947,163.4,232.41,232.35,0.71]
[1758510890764,163.4,232.41,232.36,4.30366672]
[1758510890943,163.4,232.41,232.36,5.01366672]
[1758510892443,163.4,232.41,232.37,0.71]
[1758510892851,163.4,232.41,232.38,4.30329632]
[1758510893050,31.2,232.41,232.38,5.01329632]
[1758510894670,31.2,232.41,232.32,21.52184309]
[1758510894974,31.2,232.41,232.36,0.71]
[1758510895271,31.2,232.41,232.37,0.71]
[1758510896173,31.89,232.41,232.37,0.71]
[1758510896775,31.89,232.41,232.38,4.30329632]
[1758510897171,31.2,232.41,232.38,4.30329632]
[1758510898652,31.2,232.41,232.38,5.01329632]
[1758510899071,31.2,232.41,232.38,15.77153713]
[1758510899274,132.2,232.44,232.39,0.71]
[1758510899465,132.2,232.44,232.4,0.71]
[1758510899869,163.4,232.44,232.4,0.71]
[1758510900066,164.08,232.44,232.38,15.06153713]
[1758510900376,0.68,232.43,232.32,13.86955494]
[1758510900676,0.68,232.42,232.33,15.77477854]
[1758510900854,0.68,232.41,232.35,4.30385194]
[1758510901360,209.99967953,232.44,232.35,4.30385194]
[1758510901361,176.33967953,232.44,232.35,15.0634818]
[1758510901573,0.68,232.43,232.36,0.71]
[1758510902377,0.68,232.43,232.35,15.0634818]
[1758510902378,31.2,232.41,232.35,4.30385194]
[1758510902674,0.68,232.4,232.33,0.71]
[1758510902876,0.68,232.4,232.33,5.01419511]
[1758510903680,0.68,232.39,232.33,5.01419511]
[1758510903871,31.2,232.41,232.34,0.71]
[1758510904076,165.86,232.44,232.34,0.71]
[1758510904077,31.2,232.39,232.34,0.71]
[1758510904460,31.88,232.39,232.34,0.71]
[1758510904863,31.2,232.39,232.35,0.71]
[1758510905067,31.2,232.4,232.36,4.30366672]
[1758510905270,31.88,232.4,232.35,0.71]
[1758510905577,31.2,232.4,232.35,5.01384321]
[1758510905765,0.68,232.39,232.35,4.30384321]
[1758510906163,31.2,232.4,232.35,4.30384321]
[1758510906367,31.2,232.4,232.35,5.01384321]
[1758510906569,0.68,232.39,232.35,4.30384321]
[1758510907381,0.68,232.39,232.34,4.30403718]
[1758510907567,0.68,232.39,232.34,5.01403718]
[1758510907763,31.2,232.4,232.35,0.71]
[1758510908081,31.2,232.4,232.36,0.71]
[1758510908458,31.2,232.4,232.37,0.71]
[1758510908775,132.88,232.44,232.38,0.71]
[1758510908981,0.68,232.46,232.38,0.71]
[1758510909184,31.2,232.44,232.39,15.06088901]
[1758510909370,26.0197023,232.47,232.4,0.71]
[1758510911167,26.0197023,232.47,232.41,4.30274084]
[1758510911366,26.0197023,232.47,232.41,5.01274084]
[1758510911581,26.0197023,232.47,232.42,0.71]
[1758510911982,31.2,232.47,232.41,15.05959295]
[1758510912286,31.2,232.47,232.43,0.71]
[1758510912787,31.2,232.48,232.44,4.30218551]
[1758510913176,31.87,232.48,232.44,4.30218551]
[1758510913364,31.2,232.48,232.44,4.30218551]
[1758510913687,31.2,232.49,232.44,5.01218551]
[1758510913895,31.87,232.48,232.44,4.30218551]
[1758510914569,31.2,232.48,232.44,4.30218551]
[1758510914781,31.87,232.48,232.44,4.30218551]
[1758510914981,0.67,232.47,232.43,4.3023706]
[1758510915165,0.67,232.47,232.43,5.0123706]
[1758510916590,31.2,232.48,232.43,5.0123706]
[1758510916789,0.67,232.47,232.4,0.71]
[1758510917086,4.97166887,232.47,232.36,0.71]
[1758510917962,0.67,232.47,232.36,0.71]
[1758510918167,0.14216157,232.46,232.36,0.71]
[1758510918379,0.67,232.45,232.36,0.71]
[1758510918884,0.67,232.45,232.37,15.0621853]
[1758510919069,0.67,232.45,232.38,0.71]
[1758510919264,0.67,232.45,232.37,4.30348151]
[1758510919265,0.14216157,232.44,232.37,4.30348151]
[1758510919486,32.01216157,232.44,232.37,4.30348151]
[1758510919805,0.67,232.43,232.37,4.30348151]
[1758510920273,0.67,232.43,232.37,5.01348151]
[1758510921766,0.67,232.43,232.32,13.19704286]
[1758510921767,0.14216157,232.42,232.32,13.19704286]
[1758510921971,31.2,232.4,232.33,0.71]
[1758510922192,0.67,232.39,232.33,0.71]
[1758510923183,31.2,232.4,232.33,0.71]
[1758510923778,31.2,232.4,232.34,15.06413014]
[1758510923971,31.2,232.4,232.35,0.71]